Workbook

Sheet Q3.2025 Price File
P1: VA,WY,NV,CA,SD,AR,TX,WV,DE
F3: OD Part Number | H3: TYPE | I3: UOM | J3: Description | K3: EPP/ Recycled Category | L3: Q3.2025 List | M3: RFP Category | N3: Discount % | O3: NASPO Fee | P3: NASPO Discounted Price Q3 2025
F4: 7680235 | G4: SPR | H4: SPR | I4: EA | J4: SOAP; CXR REDIFOAM | L4: 58.11 | M4: 22 | N4: =VLOOKUP(M4,DFL!A:H,8,0) -> 0.41 | O4: =P4-(P4/1.0025) -> 0.08548628429 | P4: =ROUND(L4*(1-N4),2) -> 34.28
F5: 568194 | G5: BSD | H5: BSD | I5: EA | J5: 128GB V3 USB 3.0 FLASH DRIVE | L5: 14.99 | M5: 46 | N5: =VLOOKUP(M5,DFL!A:E,5,0) -> 0.35 | O5: =P5-(P5/1.0025) -> 0.02428927681 | P5: =ROUND(L5*(1-N5),2) -> 9.74
F6: 463733 | G6: BSD | H6: BSD | I6: EA | J6: 256GB V3 USB 3.0 FLASH DRIVE | L6: 29.99 | M6: 46 | N6: =VLOOKUP(M6,DFL!A:E,5,0) -> 0.35 | O6: =P6-(P6/1.0025) -> 0.04860349127 | P6: 19.49
F7: 4627377 | G7: SPR | H7: SPR | I7: EA | J7: DETECTOR,CRNCY,CNTRFT,QKSCN | L7: 294.8 | M7: 48 | N7: =VLOOKUP(M7,DFL!A:H,8,0) -> 0.3 | O7: =P7-(P7/1.0025) -> 0.5146134663 | P7: 206.36
F8: 818638 | G8: BSD | H8: BSD | I8: CT | J8: PAPER,THRML,RL,OD,3-1/8",50 CT | L8: 150.5 | M8: 24 | N8: =VLOOKUP(M8,DFL!A:E,5,0) -> 0.63 | O8: =P8-(P8/1.0025) -> 0.1388778055 | P8: 55.69
F9: 8794001 | H9: SPR | I9: EA | J9: STAPLER,ELECTRONIC,BATTERY | L9: 60 | M9: 37 | N9: =VLOOKUP(M9,DFL!A:H,8,0) -> 0.5 | O9: =P9-(P9/1.0025) -> 0.07481296758 | P9: 30
F10: 448933 | H10: SPR | I10: EA | J10: CHAIRMAT,HARD FLOOR,36X48 | L10: 69.99 | M10: 15 | N10: =VLOOKUP(M10,DFL!A:H,8,0) -> 0.5 | O10: =P10-(P10/1.0025) -> 0.08728179551 | P10: 35
F11: 478196 | H11: SPR | I11: EA | J11: CHAIRMAT, L-WKRSTION, 66X60 | L11: 119.99 | M11: 15 | N11: =VLOOKUP(M11,DFL!A:H,8,0) -> 0.5 | O11: =P11-(P11/1.0025) -> 0.1496259352 | P11: 60
F12: 478518 | H12: SPR | I12: EA | J12: CHAIRMAT,HRDFLR,45X53,WIDE LIP | L12: 79.99 | M12: 15 | N12: =VLOOKUP(M12,DFL!A:H,8,0) -> 0.5 | O12: =P12-(P12/1.0025) -> 0.09975062344 | P12: 40
F13: 633410 | H13: SPR | I13: EA | J13: CHAIR,FENNINGTON,H-BACK,BLK | L13: 330.98 | M13: 48 | N13: =VLOOKUP(M13,DFL!A:H,8,0) -> 0.3 | O13: =P13-(P13/1.0025) -> 0.5777805486 | P13: 231.69
F14: 475823 | H14: SPR | I14: EA | J14: CHAIRMAT,ECONO,45X53,WIDE LIP | L14: 79.99 | M14: 48 | N14: =VLOOKUP(M14,DFL!A:H,8,0) -> 0.3 | O14: =P14-(P14/1.0025) -> 0.1396259352 | P14: 55.99
F15: 478532 | H15: SPR | I15: EA | J15: CHAIRMAT,HRDFLR,46X60,UTILITY | L15: 99.99 | M15: 15 | N15: =VLOOKUP(M15,DFL!A:H,8,0) -> 0.5 | O15: =P15-(P15/1.0025) -> 0.1246882793 | P15: 50
F16: 475627 | H16: SPR | I16: EA | J16: CHAIRMAT,ADVNTG,36X48,STD LIP | L16: 69.99 | M16: 15 | N16: =VLOOKUP(M16,DFL!A:H,8,0) -> 0.5 | O16: =P16-(P16/1.0025) -> 0.08728179551 | P16: 35
F17: 478427 | H17: SPR | I17: EA | J17: CHAIRMAT,ADVNTG,46X60,WIDE LIP | L17: 119.99 | M17: 48 | N17: =VLOOKUP(M17,DFL!A:H,8,0) -> 0.3 | O17: =P17-(P17/1.0025) -> 0.2094513716 | P17: 83.99
F18: 478028 | H18: SPR | I18: EA | L18: 99.99 | M18: 15 | N18: =VLOOKUP(M18,DFL!A:H,8,0) -> 0.5 | O18: =P18-(P18/1.0025) -> 0.1246882793 | P18: 50
F19: 448906 | H19: SPR | I19: EA | J19: CHAIRMAT,ALL-PILE,36X48 | L19: 89.99 | M19: 48 | N19: =VLOOKUP(M19,DFL!A:H,8,0) -> 0.3 | O19: =P19-(P19/1.0025) -> 0.1570822943 | P19: 62.99
F20: 767473 | G20: SPR | H20: SPR | I20: EA | J20: EASEL,DISPLAY,3LEG,HW,SV | L20: 102.68 | M20: 10 | N20: =VLOOKUP(M20,DFL!A:H,8,0) -> 0.36 | O20: =P20-(P20/1.0025) -> 0.1638902743 | P20: 65.72
F21: 767446 | G21: SPR | H21: SPR | I21: EA | J21: EASEL,DISPLAY,3LEG,HW,BK | L21: 102.68 | M21: 10 | N21: =VLOOKUP(M21,DFL!A:H,8,0) -> 0.36 | O21: =P21-(P21/1.0025) -> 0.1638902743 | P21: 65.72
F22: 5209424 | G22: BSD | H22: BSD | I22: EA | J22: KCUP;COFFEE;SUMATRA | L22: 20.23 | M22: 48 | N22: =VLOOKUP(M22,DFL!A:E,5,0) -> 0.42 | O22: =P22-(P22/1.0025) -> 0.02925187032 | P22: 11.73
F23: 1250416 | G23: SPR | H23: SPR | I23: CT | J23: PLASTIC CONEX CUP 5OZ TRANS | L23: 170.44 | M23: 18 | N23: =VLOOKUP(M23,DFL!A:H,8,0) -> 0.44 | O23: =P23-(P23/1.0025) -> 0.2380299252 | P23: 95.45
F24: 508646 | H24: SPR | I24: EA | J24: CHAIRMAT,BERBER,46X60,UTILITY | L24: 119.99 | M24: 15 | N24: =VLOOKUP(M24,DFL!A:H,8,0) -> 0.5 | O24: =P24-(P24/1.0025) -> 0.1496259352 | P24: 60
F25: 475788 | H25: SPR | I25: EA | J25: CHAIRMAT,ADVANTAGE,45X53,WIDE | L25: 99.99 | M25: 15 | N25: =VLOOKUP(M25,DFL!A:H,8,0) -> 0.5 | O25: =P25-(P25/1.0025) -> 0.1246882793 | P25: 50
F26: 911900 | H26: SPR | I26: EA | J26: Realspace‚Ñ¢ Economy Studded Low Pile Chair Mat, 36" x 48", Clear | L26: 49.99 | M26: 15 | N26: =VLOOKUP(M26,DFL!A:H,8,0) -> 0.5 | O26: =P26-(P26/1.0025) -> 0.06234413965 | P26: 25
F27: 6785666 | H27: SPR | I27: EA | J27: CHAIR,JAXBY,MESH,BLACK | L27: 200.59 | M27: 48 | N27: =VLOOKUP(M27,DFL!A:H,8,0) -> 0.3 | O27: =P27-(P27/1.0025) -> 0.3501496259 | P27: 140.41
F28: 911937 | H28: SPR | I28: EA | J28: Realspace‚Ñ¢ Hard Chair Mat For Hard Surfaces, Wide Lip, 45" x 53", Clear | L28: 84.99 | M28: 15 | N28: =VLOOKUP(M28,DFL!A:H,8,0) -> 0.5 | O28: =P28-(P28/1.0025) -> 0.1059850374 | P28: 42.5
F29: 974928 | G29: BSD | H29: BSD | I29: EA | J29: 64GB STORENGO DUAL USB FLASH | L29: 20.0968984 | M29: 46 | N29: =VLOOKUP(M29,DFL!A:E,5,0) -> 0.35 | O29: =P29-(P29/1.0025) -> 0.03256857855 | P29: 13.06
F30: 978462 | G30: BSD | H30: BSD | I30: EA | J30: SCISSORS 7 SLV RD | L30: 5.18 | M30: 7 | N30: =VLOOKUP(M30,DFL!A:E,5,0) -> 0.72 | O30: =P30-(P30/1.0025) -> 0.0036159601 | P30: 1.45
F31: 319404 | H31: SPR | I31: EA | J31: CHAIR,BELLANCA,BROWN | L31: 250.99 | M31: 48 | N31: =VLOOKUP(M31,DFL!A:H,8,0) -> 0.3 | O31: =P31-(P31/1.0025) -> 0.4381296758 | P31: 175.69
F32: 219491 | H32: SPR | I32: EA | J32: CHAIR HURSTON EXEC BLACK | L32: 300.89 | M32: 48 | N32: =VLOOKUP(M32,DFL!A:H,8,0) -> 0.3 | O32: =P32-(P32/1.0025) -> 0.5252369077 | P32: 210.62
F33: 734026 | G33: SPR | H33: SPR | I33: EA | J33: BOARD,IN-OUT,24"X36",WH | L33: 133.33 | M33: 10 | N33: =VLOOKUP(M33,DFL!A:H,8,0) -> 0.36 | O33: =P33-(P33/1.0025) -> 0.2127930175 | P33: 85.33
F34: 334679 | H34: SPR | I34: EA | J34: CHAIR,BELLANCA,BLACK | L34: 250.99 | M34: 48 | N34: =VLOOKUP(M34,DFL!A:H,8,0) -> 0.3 | O34: =P34-(P34/1.0025) -> 0.4381296758 | P34: 175.69
F35: 911919 | H35: SPR | I35: EA | J35: Realspace‚Ñ¢ Berber Studded Chair Mat For Low-Pile Carpets, 46"W x 60"D, Clear | L35: 109.99 | M35: 15 | N35: =VLOOKUP(M35,DFL!A:H,8,0) -> 0.5 | O35: =P35-(P35/1.0025) -> 0.1371571072 | P35: 55
F36: 744074 | H36: SPR | I36: EA | J36: CHAIR,CRESSFIELD,H-BACK,BLK | L36: 341.01 | M36: 48 | N36: =VLOOKUP(M36,DFL!A:H,8,0) -> 0.3 | O36: =P36-(P36/1.0025) -> 0.595286783 | P36: 238.71
F37: 660194 | H37: SPR | I37: EA | J37: CHAIR,CRESSFIELD,H-BACK,BRN | L37: 341.01 | M37: 48 | N37: =VLOOKUP(M37,DFL!A:H,8,0) -> 0.3 | O37: =P37-(P37/1.0025) -> 0.595286783 | P37: 238.71
F38: 6342267 | H38: SPR | I38: EA | J38: CHAIR,JAXBY,MESH,BLK,GRY | L38: 200.59 | M38: 48 | N38: =VLOOKUP(M38,DFL!A:H,8,0) -> 0.3 | O38: =P38-(P38/1.0025) -> 0.3501496259 | P38: 140.41
F39: 881463 | H39: SPR | I39: EA | J39: CHAIR,FENNINGTON,H-BACK,BRN | L39: 330.98 | M39: 48 | N39: =VLOOKUP(M39,DFL!A:H,8,0) -> 0.3 | O39: =P39-(P39/1.0025) -> 0.5777805486 | P39: 231.69
F40: 217988 | H40: SPR | I40: EA | J40: VERISMO,H/BACK,EXEC,CHAIR,BLK | L40: 480.95 | M40: 48 | N40: =VLOOKUP(M40,DFL!A:H,8,0) -> 0.3 | O40: =P40-(P40/1.0025) -> 0.8395760599 | P40: 336.67
F41: 454141 | H41: SPR | I41: PK | J41: TRIMMER;TERRIFIC;SPARKLE;RD | L41: 3.99 | M41: 7 | N41: =VLOOKUP(M41,DFL!A:H,8,0) -> 0.46 | O41: =P41-(P41/1.0025) -> 0.00536159601 | P41: 2.15
F42: 677198 | H42: SPR | I42: PK | J42: TOWEL SCOTT MEGA 15PK SAS WHT | L42: 38.62 | M42: 40 | N42: =VLOOKUP(M42,DFL!A:H,8,0) -> 0.44 | O42: =P42-(P42/1.0025) -> 0.05394014963 | P42: 21.63
F43: 8185855 | G43: SPR | H43: SPR | I43: EA | J43: BOARD,AYDA,STEEL,24X36 | L43: 80.68 | M43: 10 | N43: =VLOOKUP(M43,DFL!A:H,8,0) -> 0.36 | O43: =P43-(P43/1.0025) -> 0.1287780549 | P43: 51.64
F44: 139430 | H44: SPR | I44: CT | J44: TOWEL;ROLL;CORMATIC | L44: 112.82 | M44: 40 | N44: =VLOOKUP(M44,DFL!A:H,8,0) -> 0.44 | O44: =P44-(P44/1.0025) -> 0.1575561097 | P44: 63.18
F45: 964209 | G45: BSD | H45: BSD | I45: PK | J45: 2PK 32GB STORE N GO V3 USB 3.0 | L45: 19.99 | M45: 46 | N45: =VLOOKUP(M45,DFL!A:E,5,0) -> 0.35 | O45: =P45-(P45/1.0025) -> 0.03239401496 | P45: 12.99
F46: 749969 | H46: SPR | I46: EA | J46: CHAIR,RADLEY,TASK | L46: 200.59 | M46: 48 | N46: =VLOOKUP(M46,DFL!A:H,8,0) -> 0.3 | O46: =P46-(P46/1.0025) -> 0.3501496259 | P46: 140.41
F47: 982554 | G47: BSD | H47: BSD | I47: EA | J47: KOSS UR 10 - HEADSET | L47: 9.99 | M47: 48 | N47: =VLOOKUP(M47,DFL!A:E,5,0) -> 0.42 | O47: =P47-(P47/1.0025) -> 0.01443890274 | P47: 5.79
F48: 3434195 | G48: BSD | H48: BSD | I48: EA | J48: Epson PowerLite L630U Long Throw 3LCD Projector - FrontWUXGA - 6200 lm - HDMI - USB - Wireless LAN - Network (RJ-45) - Education, Corporate, Digital Signage, Entertainment | L48: 6135 | M48: 48 | N48: =VLOOKUP(M48,DFL!A:E,5,0) -> 0.42 | O48: =P48-(P48/1.0025) -> 8.873566085 | P48: 3558.3
F49: 3798978 | H49: SPR | I49: EA | J49: CHAIR,TORVAL,BIG&TALL,EXEC,BLK | L49: 661.97 | M49: 48 | N49: =VLOOKUP(M49,DFL!A:H,8,0) -> 0.3 | O49: =P49-(P49/1.0025) -> 1.155561097 | P49: 463.38
F50: 493876 | H50: SPR | I50: EA | J50: CHAIR,MFTC200,TASK,BLACK | L50: 300.89 | M50: 48 | N50: =VLOOKUP(M50,DFL!A:H,8,0) -> 0.3 | O50: =P50-(P50/1.0025) -> 0.5252369077 | P50: 210.62
F51: 7972977 | H51: SPR | I51: EA | J51: CHAIR,GAMING | L51: 601.79 | M51: 48 | N51: =VLOOKUP(M51,DFL!A:H,8,0) -> 0.3 | O51: =P51-(P51/1.0025) -> 1.050498753 | P51: 421.25
F52: 239306 | G52: BSD | H52: BSD | I52: EA | J52: USB,ELITE,EDGE, 128GB | L52: 40.54 | M52: 46 | N52: =VLOOKUP(M52,DFL!A:E,5,0) -> 0.35 | O52: =P52-(P52/1.0025) -> 0.06571072319 | P52: 26.35
F53: 122504 | G53: BSD | H53: BSD | I53: EA | J53: USB,ELITE,EDGE, 256GB | L53: 66.2 | M53: 46 | N53: =VLOOKUP(M53,DFL!A:E,5,0) -> 0.35 | O53: =P53-(P53/1.0025) -> 0.1073067332 | P53: 43.03
F54: 729452 | G54: BSD | H54: BSD | I54: EA | J54: DRIVE,USB 3.0,V3,MAX,128GB | L54: 45.63571762 | M54: 46 | N54: =VLOOKUP(M54,DFL!A:E,5,0) -> 0.35 | O54: =P54-(P54/1.0025) -> 0.07396508728 | P54: 29.66
F55: 342818 | G55: BSD | H55: BSD | I55: EA | J55: SHREDDER,14SHT,XCUT,WHITE,13G | L55: 944.99 | M55: 21 | N55: =VLOOKUP(M55,DFL!A:E,5,0) -> 0.42 | O55: =P55-(P55/1.0025) -> 1.36680798 | P55: 548.09
F56: 702664 | H56: SPR | I56: EA | J56: HEADPHONES;CHILDS;YELLOW | L56: 18.49 | M56: 23 | N56: =VLOOKUP(M56,DFL!A:H,8,0) -> 0.3 | O56: =P56-(P56/1.0025) -> 0.03226932668 | P56: 12.94
F57: 5984855 | G57: SPR | H57: SPR | I57: PL | J57: TISSUE,FAC,85CT,WH | L57: 4552.8 | M57: 40 | N57: =VLOOKUP(M57,DFL!A:H,8,0) -> 0.44 | O57: =P57-(P57/1.0025) -> 6.358029925 | P57: 2549.57
F58: 792689 | G58: SPR | H58: SPR | I58: CT | J58: TISSUE,FAC,85CT,WH | L58: 94.85 | M58: 40 | N58: =VLOOKUP(M58,DFL!A:H,8,0) -> 0.44 | O58: =P58-(P58/1.0025) -> 0.1324688279 | P58: 53.12
F59: 5110841 | H59: SPR | I59: EA | J59: Realspace¬Æ Praxley Faux Leather Low-Back Task Chair, Dark Gray | L59: 170.67 | M59: 48 | N59: =VLOOKUP(M59,DFL!A:H,8,0) -> 0.3 | O59: =P59-(P59/1.0025) -> 0.2979301746 | P59: 119.47
F60: 6742150 | H60: SPR | I60: EA | J60: CHAIR,LEVARI,MESH,MB TASK,GRY | L60: 320.95 | M60: 48 | N60: =VLOOKUP(M60,DFL!A:H,8,0) -> 0.3 | O60: =P60-(P60/1.0025) -> 0.5602743142 | P60: 224.67
F61: 7200026 | H61: SPR | I61: EA | J61: CHAIR,LENZER,MESH,HB TASK,BLK | L61: 320.95 | M61: 48 | N61: =VLOOKUP(M61,DFL!A:H,8,0) -> 0.3 | O61: =P61-(P61/1.0025) -> 0.5602743142 | P61: 224.67
F62: 6217486 | H62: SPR | I62: EA | J62: Realspace¬Æ Lenzer Mesh High-Back Task Chair, Gray | L62: 320.95 | M62: 48 | N62: =VLOOKUP(M62,DFL!A:H,8,0) -> 0.3 | O62: =P62-(P62/1.0025) -> 0.5602743142 | P62: 224.67
F63: 307397 | G63: BSD | H63: BSD | I63: DZ | J63: PAD,PERF,5X8,CAN,LGL,RLD,12PK | L63: 67.03 | M63: 30 | N63: =VLOOKUP(M63,DFL!A:E,5,0) -> 0.73 | O63: =P63-(P63/1.0025) -> 0.04513715711 | P63: 18.1
F64: 5287072 | H64: SPR | I64: EA | J64: FILTER,PRIV,GD,F/MACBKPRO16 | L64: 78.65 | M64: 48 | N64: =VLOOKUP(M64,DFL!A:H,8,0) -> 0.3 | O64: =P64-(P64/1.0025) -> 0.1373067332 | P64: 55.06
F65: 4659304 | H65: SPR | I65: EA | J65: CHAIR,MAYHART,MB,BROWN | L65: 240.71 | M65: 48 | N65: =VLOOKUP(M65,DFL!A:H,8,0) -> 0.3 | O65: =P65-(P65/1.0025) -> 0.4201995012 | P65: 168.5
F66: 8638586 | H66: SPR | I66: EA | J66: CHAIR,TRESWELL,HB,BLACK | L66: 351.04 | M66: 48 | N66: =VLOOKUP(M66,DFL!A:H,8,0) -> 0.3 | O66: =P66-(P66/1.0025) -> 0.6127930175 | P66: 245.73
F67: 836787 | H67: SPR | I67: EA | J67: CHAIR,EXEC,SERTA,HENSLEY,BLK | L67: 651.94 | M67: 48 | N67: =VLOOKUP(M67,DFL!A:H,8,0) -> 0.3 | O67: =P67-(P67/1.0025) -> 1.138054863 | P67: 456.36
F68: 8186756 | G68: SPR | H68: SPR | I68: EA | J68: BOARD,AYDA,STEEL,36X48 | L68: 151.28 | M68: 10 | N68: =VLOOKUP(M68,DFL!A:H,8,0) -> 0.36 | O68: =P68-(P68/1.0025) -> 0.241446384 | P68: 96.82
F69: 268444 | H69: SPR | I69: EA | J69: SYSTEM,SPEAKER,MMEDIA,Z200 | L69: 39.99 | M69: 29 | N69: =VLOOKUP(M69,DFL!A:H,8,0) -> 0.3 | O69: =P69-(P69/1.0025) -> 0.06980049875 | P69: =ROUND(L69*(1-N69),2) -> 27.99
F70: 949523 | H70: SPR | I70: EA | J70: MODULE,POWER,DATACENTER | L70: 375 | M70: 48 | N70: =VLOOKUP(M70,DFL!A:H,8,0) -> 0.3 | O70: =P70-(P70/1.0025) -> 0.6546134663 | P70: 262.5
F71: 6994240 | H71: SPR | I71: EA | J71: Realspace¬Æ Modern Comfort Verismo Bonded Leather High-Back Executive Chair, Brown/Chrome | L71: 480.95 | M71: 48 | N71: =VLOOKUP(M71,DFL!A:H,8,0) -> 0.3 | O71: =P71-(P71/1.0025) -> 0.8395760599 | P71: 336.67
F72: 5242953 | H72: SPR | I72: EA | J72: CHAIR,MAYHART,MB,BLACK | L72: 240.71 | M72: 48 | N72: =VLOOKUP(M72,DFL!A:H,8,0) -> 0.3 | O72: =P72-(P72/1.0025) -> 0.4201995012 | P72: 168.5
F73: 257438 | H73: SPR | I73: PK | J73: LEGALPAD ODPRO 5X8 CANARY | L73: 25.83 | M73: 30 | N73: =VLOOKUP(M73,DFL!A:H,8,0) -> 0.58 | O73: =P73-(P73/1.0025) -> 0.02705735661 | P73: 10.85
F74: 915584 | H74: SPR | I74: PK | J74: CHARTS;THE HUMAN BODY;7PC | L74: 17.49 | M74: 47 | N74: =VLOOKUP(M74,DFL!A:H,8,0) -> 0.5 | O74: =P74-(P74/1.0025) -> 0.02182044888 | P74: 8.75
F75: 8063701 | H75: SPR | I75: EA | J75: WEBCAM, CONSUMER, C505 | L75: 49.99 | M75: 21 | N75: =VLOOKUP(M75,DFL!A:H,8,0) -> 0.29 | O75: =P75-(P75/1.0025) -> 0.08850374065 | P75: 35.49
F76: 625502 | G76: BSD | H76: BSD | I76: PK | J76: PADLEGAL,8.5X11.75,CANARY,50SH | L76: 26.78 | M76: 30 | N76: =VLOOKUP(M76,DFL!A:E,5,0) -> 0.73 | O76: =P76-(P76/1.0025) -> 0.01802992519 | P76: 7.23
F77: 825587 | G77: SPR | H77: SPR | I77: EA | J77: BOARD,COMBO,4X6,ALUMINUM | L77: 253.95 | M77: 10 | N77: =VLOOKUP(M77,DFL!A:H,8,0) -> 0.36 | O77: =P77-(P77/1.0025) -> 0.4053117207 | P77: 162.53
F78: 9926827 | H78: SPR | I78: EA | J78: Realspace‚Ñ¢ Bretino LED Magnifier Desk Lamp With Mounting Clamp, 22"H, Black | L78: 89.99 | M78: 16 | N78: =VLOOKUP(M78,DFL!A:H,8,0) -> 0.36 | O78: =P78-(P78/1.0025) -> 0.1436159601 | P78: 57.59
F79: 532073 | G79: BSD | H79: BSD | I79: EA | J79: KOSS KPH 7 - HEADPHONES | L79: 5.99 | M79: 23 | N79: =VLOOKUP(M79,DFL!A:E,5,0) -> 0.37 | O79: =P79-(P79/1.0025) -> 0.009401496259 | P79: 3.77
F80: 537045 | G80: BSD | H80: BSD | I80: CT | J80: CUP,8 OZ,FOAM,1M/CTN,WE | L80: 110.46 | M80: 18 | N80: =VLOOKUP(M80,DFL!A:E,5,0) -> 0.55 | O80: =P80-(P80/1.0025) -> 0.1239650873 | P80: 49.71
F81: 7377876 | H81: SPR | I81: EA | J81: CHAIR,TRESWELL,HB,BROWN | L81: 351.04 | M81: 48 | N81: =VLOOKUP(M81,DFL!A:H,8,0) -> 0.3 | O81: =P81-(P81/1.0025) -> 0.6127930175 | P81: 245.73
F82: 2626508 | G82: BSD | H82: BSD | I82: EA | J82: Dell P2422H 23.8" Full HD WLED LCD Monitor - 16:9 - 24" Class - In-plane Switching (IPS) Technology - 1920 x 1080 - 16.7 Million Colors - 250 Nit - 5 ms GTG (Fast) - HDMI - VGA - DisplayPort - USB Hub | L82: 229.99 | M82: 48 | N82: =VLOOKUP(M82,DFL!A:E,5,0) -> 0.42 | O82: =P82-(P82/1.0025) -> 0.3326433915 | P82: 133.39
F83: 9702132 | H83: SPR | I83: EA | J83: CHAIR,WORKPRO12K,MESH,FABRIC | L83: 980.97 | M83: 48 | N83: =VLOOKUP(M83,DFL!A:H,8,0) -> 0.3 | O83: =P83-(P83/1.0025) -> 1.712418953 | P83: 686.68
F84: 223111 | H84: SPR | I84: DZ | J84: PAD,PERF,OD,LGL RLD,8.5X14,CAN | L84: 128.99 | M84: 30 | N84: =VLOOKUP(M84,DFL!A:H,8,0) -> 0.58 | O84: =P84-(P84/1.0025) -> 0.1351122195 | P84: 54.18
F85: 305706 | G85: BSD | H85: BSD | I85: DZ | J85: PAD,PERF,8.5X11,OD,12PK,LGL RL | L85: 110.77 | M85: 30 | N85: =VLOOKUP(M85,DFL!A:E,5,0) -> 0.73 | O85: =P85-(P85/1.0025) -> 0.07458852868 | P85: 29.91
F86: 9974996 | G86: BSD | H86: BSD | I86: EA | J86: FAN,TOWER,WHOLE RM,QUIETSET | L86: 111.79 | M86: 21 | N86: =VLOOKUP(M86,DFL!A:E,5,0) -> 0.42 | O86: =P86-(P86/1.0025) -> 0.1616957606 | P86: 64.84
F87: 1329697 | G87: SPR | H87: SPR | I87: PK | J87: MAGNETS MV PUSH PIN 10 SV | L87: 14.45 | M87: 7 | N87: =VLOOKUP(M87,DFL!A:H,8,0) -> 0.46 | O87: =P87-(P87/1.0025) -> 0.01945137157 | P87: 7.8
F88: 8183480 | G88: SPR | H88: SPR | I88: EA | J88: BOARD,AYDA,PORC,36X48 | L88: 268.45 | M88: 10 | N88: =VLOOKUP(M88,DFL!A:H,8,0) -> 0.36 | O88: =P88-(P88/1.0025) -> 0.4284538653 | P88: 171.81
F89: 900246 | G89: BSD | H89: BSD | I89: EA | J89: PNY USB 2.0 Flash Drive, 64GB, Assorted | L89: 20.82 | M89: 46 | N89: =VLOOKUP(M89,DFL!A:E,5,0) -> 0.35 | O89: =P89-(P89/1.0025) -> 0.03374064838 | P89: 13.53
F90: 8681522 | G90: SPR | H90: SPR | I90: PK | J90: NOTEBOOK,1SUB,4PK,8"X10" | L90: 10.08 | M90: 30 | N90: =VLOOKUP(M90,DFL!A:H,8,0) -> 0.58 | O90: =P90-(P90/1.0025) -> 0.01054862843 | P90: 4.23
F91: 351655 | G91: BSD | H91: BSD | I91: EA | J91: LAMINATOR,THERMAL,VALUEPACK | L91: 87.76 | M91: 21 | N91: =VLOOKUP(M91,DFL!A:E,5,0) -> 0.42 | O91: =P91-(P91/1.0025) -> 0.1269326683 | P91: 50.9
F92: 234108 | G92: SPR | H92: SPR | I92: EA | J92: TABLE,FLDNG,30"X96",MY | L92: 406 | M92: 48 | N92: =VLOOKUP(M92,DFL!A:H,8,0) -> 0.3 | O92: =P92-(P92/1.0025) -> 0.7087281796 | P92: 284.2
F93: 939905 | H93: SPR | I93: EA | J93: BELKIN MINI TRAVEL SURGE PROTE | L93: 29.99 | M93: 48 | N93: =VLOOKUP(M93,DFL!A:H,8,0) -> 0.3 | O93: =P93-(P93/1.0025) -> 0.05234413965 | P93: 20.99
F94: 9263076 | H94: SPR | I94: EA | J94: 256GB VI560 SATA III M.2 2280 | L94: 39.99 | M94: 46 | N94: =VLOOKUP(M94,DFL!A:H,8,0) -> 0.18 | O94: =P94-(P94/1.0025) -> 0.08177057357 | P94: 32.79
F95: 432958 | H95: SPR | I95: EA | J95: HEADSET;TWO;3.5;MM;PLUGS | L95: 38.75 | M95: 23 | N95: =VLOOKUP(M95,DFL!A:H,8,0) -> 0.3 | O95: =P95-(P95/1.0025) -> 0.06765586035 | P95: 27.13
F96: 942062 | G96: BSD | H96: BSD | I96: EA | J96: USB,ELITE,EDGE, 64GB | L96: 30.34 | M96: 46 | N96: =VLOOKUP(M96,DFL!A:E,5,0) -> 0.35 | O96: =P96-(P96/1.0025) -> 0.04917705736 | P96: 19.72
F97: 793816 | G97: BSD | H97: BSD | I97: CT | J97: DETERGENT,AB,ULTRA,PLMLV,9CT | L97: 63.79 | M97: 19 | N97: =VLOOKUP(M97,DFL!A:E,5,0) -> 0.5 | O97: =P97-(P97/1.0025) -> 0.07955112219 | P97: 31.9
F98: 260225 | G98: BSD | H98: BSD | I98: CT | J98: DETERGENT,UTR,ORIG,PLMVE,9CT | L98: 63.79 | M98: 19 | N98: =VLOOKUP(M98,DFL!A:E,5,0) -> 0.5 | O98: =P98-(P98/1.0025) -> 0.07955112219 | P98: 31.9
F99: 8265729 | H99: SPR | I99: EA | J99: FILTER,ANTI-GLARE,NB,13.3"W | L99: 38.85 | M99: 48 | N99: =VLOOKUP(M99,DFL!A:H,8,0) -> 0.3 | O99: =P99-(P99/1.0025) -> 0.06783042394 | P99: 27.2
F100: 734188 | G100: SPR | H100: SPR | I100: EA | J100: BOARD,PLNR,MNTH,24X36,WH | L100: 142.45 | M100: 10 | N100: =VLOOKUP(M100,DFL!A:H,8,0) -> 0.36 | O100: =P100-(P100/1.0025) -> 0.2273566085 | P100: 91.17
F101: 734089 | G101: SPR | H101: SPR | I101: EA | J101: BOARD,PLNR,4MNTH,24X36,WH | L101: 142.48 | M101: 10 | N101: =VLOOKUP(M101,DFL!A:H,8,0) -> 0.36 | O101: =P101-(P101/1.0025) -> 0.2274064838 | P101: 91.19
F102: 504686 | G102: SPR | H102: SPR | I102: EA | J102: SHELVING,WIRE,INDUS,48X24 | L102: 341 | M102: 38 | N102: =VLOOKUP(M102,DFL!A:H,8,0) -> 0.36 | O102: =P102-(P102/1.0025) -> 0.5442394015 | P102: 218.24
F103: 388262 | H103: SPR | I103: EA | J103: CHAIR,WINSLEY,MIDBACK,BLACK | L103: 300.89 | M103: 48 | N103: =VLOOKUP(M103,DFL!A:H,8,0) -> 0.3 | O103: =P103-(P103/1.0025) -> 0.5252369077 | P103: 210.62
F104: 7306638 | G104: BSD | H104: BSD | I104: RM | J104: PAPER,ASTBRT SPRNKL,65#,250PK | L104: 29.67 | M104: 32 | N104: =VLOOKUP(M104,DFL!A:E,5,0) -> 0.75 | O104: =P104-(P104/1.0025) -> 0.01850374065 | P104: 7.42
F105: 4582120 | H105: SPR | I105: EA | J105: SHAQ,ZEPHYRUS,EXE,CHAIR,BL | L105: 801.59 | M105: 48 | N105: =VLOOKUP(M105,DFL!A:H,8,0) -> 0.3 | O105: =P105-(P105/1.0025) -> 1.399276808 | P105: 561.11
F106: 628941 | G106: BSD | H106: BSD | I106: RM | J106: PAPER,ASTROBRT,24#,LTR,VINTAGE | L106: 46.37 | M106: 32 | N106: =VLOOKUP(M106,DFL!A:E,5,0) -> 0.75 | O106: =P106-(P106/1.0025) -> 0.02890274314 | P106: 11.59
F107: 3537611 | H107: SPR | I107: EA | J107: Realspace¬Æ RS Gaming Vertex Faux Leather High-Back Gaming Chair, Black | L107: 501.49 | M107: 48 | N107: =VLOOKUP(M107,DFL!A:H,8,0) -> 0.3 | O107: =P107-(P107/1.0025) -> 0.8754114713 | P107: 351.04
F108: 8183211 | G108: SPR | H108: SPR | I108: EA | J108: BOARD,AYDA,PORC,24X36 | L108: 146.63 | M108: 10 | N108: =VLOOKUP(M108,DFL!A:H,8,0) -> 0.36 | O108: =P108-(P108/1.0025) -> 0.2340149626 | P108: 93.84
F109: 7792143 | G109: BSD | H109: BSD | I109: CA | J109: DETERGENT;DAWN;PRF;HD;1G | L109: 122.59 | M109: 19 | N109: =VLOOKUP(M109,DFL!A:E,5,0) -> 0.5 | O109: =P109-(P109/1.0025) -> 0.1528678304 | P109: 61.3
F110: 967383 | G110: SPR | H110: SPR | I110: EA | J110: TABLE,FLDNG,30X72,MY | L110: 323 | M110: 48 | N110: =VLOOKUP(M110,DFL!A:H,8,0) -> 0.3 | O110: =P110-(P110/1.0025) -> 0.563840399 | P110: 226.1
F111: 9063975 | G111: BSD | H111: BSD | I111: CA | J111: DETERGENT;DAWN;PRF;HD;38Z | L111: 84.09 | M111: 19 | N111: =VLOOKUP(M111,DFL!A:E,5,0) -> 0.5 | O111: =P111-(P111/1.0025) -> 0.1048628429 | P111: 42.05
F112: 253096 | G112: BSD | H112: BSD | I112: EA | J112: V16,HD,EXTERNAL,MYBOOK,4TB | L112: 134.99 | M112: 48 | N112: =VLOOKUP(M112,DFL!A:E,5,0) -> 0.42 | O112: =P112-(P112/1.0025) -> 0.1952369077 | P112: 78.29
F113: 7449162 | H113: SPR | I113: EA | J113: SNACKS;FRUITLOOPS;JUMBO;12CT | L113: 7.99 | M113: 48 | N113: =VLOOKUP(M113,DFL!A:H,8,0) -> 0.3 | O113: =P113-(P113/1.0025) -> 0.01394014963 | P113: 5.59
F114: 9281002 | H114: SPR | I114: EA | J114: Realspace¬Æ Modern Comfort Winsley Bonded Leather Mid-Back Manager's Chair, Brown/Black | L114: 300.89 | M114: 48 | N114: =VLOOKUP(M114,DFL!A:H,8,0) -> 0.3 | O114: =P114-(P114/1.0025) -> 0.5252369077 | P114: 210.62
F115: 690690 | H115: SPR | I115: EA | J115: CHAIR,9000 SERIES,W/HEAD,BLACK | L115: 950.94 | M115: 48 | N115: =VLOOKUP(M115,DFL!A:H,8,0) -> 0.3 | O115: =P115-(P115/1.0025) -> 1.66 | P115: 665.66
F116: 4435197 | G116: BSD | H116: BSD | I116: PK | J116: PNY USB 2.0 Flash Drives, 64GB, Pack Of 2 Flash Drives | L116: 25.79 | M116: 46 | N116: =VLOOKUP(M116,DFL!A:E,5,0) -> 0.35 | O116: =P116-(P116/1.0025) -> 0.04179551122 | P116: 16.76
F117: 6211168 | H117: SPR | I117: EA | J117: LAMP,DESK,ORGANIZER,BLACK | L117: 49.99 | M117: 16 | N117: =VLOOKUP(M117,DFL!A:H,8,0) -> 0.36 | O117: =P117-(P117/1.0025) -> 0.0797755611 | P117: 31.99
F118: 6105888 | H118: SPR | I118: EA | J118: Realspace¬Æ Lusina LED Organizer Desk Lamp With USB, 18"H, White | L118: 49.99 | M118: 16 | N118: =VLOOKUP(M118,DFL!A:H,8,0) -> 0.36 | O118: =P118-(P118/1.0025) -> 0.0797755611 | P118: 31.99
F119: 326330 | H119: SPR | I119: EA | J119: HI-POWER LED BRUSHED NICKEL | L119: 49.99 | M119: 16 | N119: =VLOOKUP(M119,DFL!A:H,8,0) -> 0.36 | O119: =P119-(P119/1.0025) -> 0.0797755611 | P119: 31.99
F120: 287205 | G120: SPR | H120: SPR | I120: EA | J120: BOARD,CRK,STNLS FRM,2X3,ERTHIT | L120: 81.75 | M120: 10 | N120: =VLOOKUP(M120,DFL!A:H,8,0) -> 0.36 | O120: =P120-(P120/1.0025) -> 0.1304738155 | P120: 52.32
F121: 148249 | G121: BSD | H121: BSD | I121: EA | J121: 32GB STORENGO DUAL USB FLASH | L121: 18.07103604 | M121: 46 | N121: =VLOOKUP(M121,DFL!A:E,5,0) -> 0.35 | O121: =P121-(P121/1.0025) -> 0.02930174564 | P121: 11.75
F122: 857562 | H122: SPR | I122: EA | J122: Realspace¬Æ Calusa Mesh Mid-Back Manager's Chair, Black | L122: 300.89 | M122: 48 | N122: =VLOOKUP(M122,DFL!A:H,8,0) -> 0.3 | O122: =P122-(P122/1.0025) -> 0.5252369077 | P122: 210.62
F123: 734098 | G123: SPR | H123: SPR | I123: EA | J123: BOARD,PLNR,24X36,MNTH,WH | L123: 145.43 | M123: 10 | N123: =VLOOKUP(M123,DFL!A:H,8,0) -> 0.36 | O123: =P123-(P123/1.0025) -> 0.2321197007 | P123: 93.08
F124: 268671 | H124: SPR | I124: DZ | J124: PAD,GUM,8.5X11,OD,CAN,LGL RLD | L124: 136.14 | M124: 30 | N124: =VLOOKUP(M124,DFL!A:H,8,0) -> 0.58 | O124: =P124-(P124/1.0025) -> 0.1425935162 | P124: 57.18
F125: 907932 | H125: SPR | I125: EA | J125: CHAIR,WINSLEY,MIDBACK,WHITE | L125: 300.89 | M125: 48 | N125: =VLOOKUP(M125,DFL!A:H,8,0) -> 0.3 | O125: =P125-(P125/1.0025) -> 0.5252369077 | P125: 210.62
F126: 327614 | H126: SPR | I126: EA | J126: LED STRIP CLAMP-ON LAMP | L126: 59.99 | M126: 16 | N126: =VLOOKUP(M126,DFL!A:H,8,0) -> 0.36 | O126: =P126-(P126/1.0025) -> 0.09573566085 | P126: 38.39
F127: 466979 | H127: SPR | I127: EA | J127: WINSLEY GRAY | L127: 300.89 | M127: 48 | N127: =VLOOKUP(M127,DFL!A:H,8,0) -> 0.3 | O127: =P127-(P127/1.0025) -> 0.5252369077 | P127: 210.62
F128: 582429 | G128: SPR | H128: SPR | I128: EA | J128: EASLE,LIGHTWEIGHT,SILVER | L128: 97.43 | M128: 10 | N128: =VLOOKUP(M128,DFL!A:H,8,0) -> 0.36 | O128: =P128-(P128/1.0025) -> 0.1555112219 | P128: 62.36
F129: 502176 | G129: SPR | H129: SPR | I129: EA | J129: EASEL,LIGHTWEIGHT,BLK | L129: 97.43 | M129: 10 | N129: =VLOOKUP(M129,DFL!A:H,8,0) -> 0.36 | O129: =P129-(P129/1.0025) -> 0.1555112219 | P129: 62.36
F130: 6459739 | G130: BSD | H130: BSD | I130: RM | J130: PAPER,ASTBRT SPRNKL,24#,500PK | L130: 29.67 | M130: 32 | N130: =VLOOKUP(M130,DFL!A:E,5,0) -> 0.75 | O130: =P130-(P130/1.0025) -> 0.01850374065 | P130: 7.42
F131: 752523 | H131: SPR | I131: EA | J131: KIT,EXTD MAINTENANCE | L131: 172.19 | M131: 43 | N131: =VLOOKUP(M131,DFL!A:H,8,0) -> 0.3 | O131: =P131-(P131/1.0025) -> 0.3005735661 | P131: 120.53
F132: 603331 | H132: SPR | I132: EA | J132: Single Steel Anchor | L132: 14.99 | M132: 48 | N132: =VLOOKUP(M132,DFL!A:H,8,0) -> 0.3 | O132: =P132-(P132/1.0025) -> 0.026159601 | P132: 10.49
F133: 7481227 | G133: SPR | H133: SPR | I133: CA | J133: BOWL;12OZ;SUGARCANE | L133: 214.55 | M133: 18 | N133: =VLOOKUP(M133,DFL!A:H,8,0) -> 0.44 | O133: =P133-(P133/1.0025) -> 0.2996259352 | P133: =ROUND(L133*(1-N133),2) -> 120.15
F134: 8118048 | H134: SPR | I134: EA | J134: PROTECTOR,SRG,6OTLT,4USB | L134: 60.57431818 | M134: 6 | N134: =VLOOKUP(M134,DFL!A:H,8,0) -> 0.47 | O134: =P134-(P134/1.0025) -> 0.08004987531 | P134: 32.1
F135: 5672257 | G135: SPR | H135: SPR | I135: CA | J135: PLATE;6";SUGARCANE | L135: 115.12 | M135: 18 | N135: =VLOOKUP(M135,DFL!A:H,8,0) -> 0.44 | O135: =P135-(P135/1.0025) -> 0.1607730673 | P135: 64.47
F136: 6037892 | G136: SPR | H136: SPR | I136: CA | J136: CONTAINER;9X9;HINGED;WHT | L136: 127.6 | M136: 48 | N136: =VLOOKUP(M136,DFL!A:H,8,0) -> 0.3 | O136: =P136-(P136/1.0025) -> 0.2227431421 | P136: 89.32
F137: 9958244 | H137: SPR | I137: CT | J137: CHAIR,UPHOLSTERED,W/ARMS,OE | L137: 550 | M137: 48 | N137: =VLOOKUP(M137,DFL!A:H,8,0) -> 0.3 | O137: =P137-(P137/1.0025) -> 0.9600997506 | P137: 385
F138: 304601 | H138: SPR | I138: EA | J138: SERTA,SL,HENSLEY,EXEC,B&T | L138: 651.94 | M138: 48 | N138: =VLOOKUP(M138,DFL!A:H,8,0) -> 0.3 | O138: =P138-(P138/1.0025) -> 1.138054863 | P138: 456.36
F139: 688029 | H139: SPR | I139: EA | J139: GREEN BANKER'S | L139: 79.99 | M139: 16 | N139: =VLOOKUP(M139,DFL!A:H,8,0) -> 0.36 | O139: =P139-(P139/1.0025) -> 0.1276558603 | P139: 51.19
F140: 9253654 | H140: SPR | I140: EA | J140: CHAIR BUCKET BROWN | L140: 170.67 | M140: 48 | N140: =VLOOKUP(M140,DFL!A:H,8,0) -> 0.3 | O140: =P140-(P140/1.0025) -> 0.2979301746 | P140: 119.47
F141: 723730 | G141: SPR | H141: SPR | I141: EA | J141: TABLE,36" SQIARE.PLATINUM | L141: 199 | M141: 48 | N141: =VLOOKUP(M141,DFL!A:H,8,0) -> 0.3 | O141: =P141-(P141/1.0025) -> 0.3473815461 | P141: 139.3
F142: 664393 | G142: SPR | H142: SPR | I142: CT | J142: COVER,TOLETST,250R,25C/CT | L142: 56.86 | M142: 19 | N142: =VLOOKUP(M142,DFL!A:H,8,0) -> 0.45 | O142: =P142-(P142/1.0025) -> 0.07798004988 | P142: 31.27
F143: 5716283 | G143: BSD | H143: BSD | I143: EA | J143: PNY USB 2.0 Flash Drives, 16GB, Assorted Colors, Pack Of 5 Flash Drives | L143: 35.71 | M143: 46 | N143: =VLOOKUP(M143,DFL!A:E,5,0) -> 0.35 | O143: =P143-(P143/1.0025) -> 0.05788029925 | P143: 23.21
F144: 557724 | G144: BSD | H144: BSD | I144: EA | J144: USB HEADSET H570E STEREO | L144: 44.99 | M144: 23 | N144: =VLOOKUP(M144,DFL!A:E,5,0) -> 0.37 | O144: =P144-(P144/1.0025) -> 0.07067331671 | P144: 28.34
F145: 967347 | G145: SPR | H145: SPR | I145: EA | J145: TABLE,FLDNG,30"X60",MY | L145: 282 | M145: 48 | N145: =VLOOKUP(M145,DFL!A:H,8,0) -> 0.3 | O145: =P145-(P145/1.0025) -> 0.4922693267 | P145: 197.4
F146: 223463 | H146: SPR | I146: PK | J146: PLATE,HEAVYWEIGHT,5.875",125PK | L146: 14.91 | M146: 18 | N146: =VLOOKUP(M146,DFL!A:H,8,0) -> 0.44 | O146: =P146-(P146/1.0025) -> 0.02082294264 | P146: 8.35
F147: 7013246 | H147: SPR | I147: EA | J147: CHAIR REZZI MIDBACK BLK | L147: 230.45 | M147: 48 | N147: =VLOOKUP(M147,DFL!A:H,8,0) -> 0.3 | O147: =P147-(P147/1.0025) -> 0.4022942643 | P147: 161.32
F148: 510830 | H148: SPR | I148: EA | J148: CHAIR,9000 SERIES,MIDBK,BLACK | L148: 900.89 | M148: 48 | N148: =VLOOKUP(M148,DFL!A:H,8,0) -> 0.3 | O148: =P148-(P148/1.0025) -> 1.572618454 | P148: 630.62
F149: 734737 | G149: SPR | H149: SPR | I149: EA | J149: BOARD,PLNR,36X48 GRID,WH | L149: 432.48 | M149: 10 | N149: =VLOOKUP(M149,DFL!A:H,8,0) -> 0.36 | O149: =P149-(P149/1.0025) -> 0.6902493766 | P149: 276.79
F150: 172166 | G150: BSD | H150: BSD | I150: EA | J150: BRIO 4K PRO WEBCAM BROWN BOX | L150: 169.99 | M150: 48 | N150: =VLOOKUP(M150,DFL!A:E,5,0) -> 0.42 | O150: =P150-(P150/1.0025) -> 0.2458603491 | P150: 98.59
F151: 1285840 | G151: SPR | H151: SPR | I151: EA | J151: MASTERVISION RULED PLANNING BO | L151: 396.15 | M151: 10 | N151: =VLOOKUP(M151,DFL!A:H,8,0) -> 0.36 | O151: =P151-(P151/1.0025) -> 0.6322693267 | P151: 253.54
F152: 699808 | H152: SPR | I152: BX | J152: EARPLUGS FOAM DISP CORDED | L152: 59.17223924 | M152: 48 | N152: =VLOOKUP(M152,DFL!A:H,8,0) -> 0.3 | O152: =P152-(P152/1.0025) -> 0.1032917706 | P152: 41.42
F153: 304574 | H153: SPR | I153: EA | J153: SERTA,SL,JENNINGS,SUPERTSK,B&T | L153: 601.19 | M153: 48 | N153: =VLOOKUP(M153,DFL!A:H,8,0) -> 0.3 | O153: =P153-(P153/1.0025) -> 1.049451372 | P153: 420.83
F154: 8085683 | H154: SPR | I154: EA | J154: SHAQ,AMPHION,EXE,CHAIR,GRY | L154: 651.29 | M154: 48 | N154: =VLOOKUP(M154,DFL!A:H,8,0) -> 0.3 | O154: =P154-(P154/1.0025) -> 1.136907731 | P154: 455.9
F155: 7865220 | G155: BSD | H155: BSD | I155: EA | J155: Logitech Zone Wired - Headset - on-ear - wired - USB-C - graphite | L155: 99.99 | M155: 23 | N155: =VLOOKUP(M155,DFL!A:E,5,0) -> 0.37 | O155: =P155-(P155/1.0025) -> 0.1570822943 | P155: 62.99
A156: 24.19 | F156: 644250 | G156: BSD | H156: BSD | I156: CT | J156: WIPES,CLEANER,LYSOL,6/CT | L156: 51.67 | M156: 19 | N156: =VLOOKUP(M156,DFL!A:E,5,0) -> 0.5 | O156: =P156-(P156/1.0025) -> 0.06443890274 | P156: 25.84
F157: 790683 | H157: SPR | I157: DZ | J157: PENCIL;WDCASE;#2;LATEX FREE | L157: 3.985744681 | M157: 33 | N157: =VLOOKUP(M157,DFL!A:H,8,0) -> 0.55 | O157: =P157-(P157/1.0025) -> 0.004463840399 | P157: 1.79
F158: 476279 | H158: SPR | I158: EA | J158: AMPRESSO,BIG,&,TALL,CHR,TAUPE | L158: 501.49 | M158: 48 | N158: =VLOOKUP(M158,DFL!A:H,8,0) -> 0.3 | O158: =P158-(P158/1.0025) -> 0.8754114713 | P158: 351.04
F159: 951962 | G159: BSD | H159: BSD | I159: ST | J159: PAINT,WATERCOLOR,W/BRUSH,8/SET | K159: Less Harsh Chemicals,ACMI certified | L159: 4.51 | M159: 47 | N159: =VLOOKUP(M159,DFL!A:E,5,0) -> 0.57 | O159: =P159-(P159/1.0025) -> 0.004837905237 | P159: 1.94
F160: 451313 | H160: SPR | I160: EA | J160: CHAIR,TASK,FABRIC,BLACK | L160: 160.47 | M160: 48 | N160: =VLOOKUP(M160,DFL!A:H,8,0) -> 0.3 | O160: =P160-(P160/1.0025) -> 0.2801246883 | P160: 112.33
F161: 735079 | G161: SPR | H161: SPR | I161: EA | J161: BOARD,MV,18X24,COMBO,GY | L161: 60.88 | M161: 10 | N161: =VLOOKUP(M161,DFL!A:H,8,0) -> 0.36 | O161: =P161-(P161/1.0025) -> 0.09715710723 | P161: 38.96
F162: 1329724 | G162: SPR | H162: SPR | I162: EA | J162: BOARD COMBO 18X24 BK | L162: 60.88 | M162: 10 | N162: =VLOOKUP(M162,DFL!A:H,8,0) -> 0.36 | O162: =P162-(P162/1.0025) -> 0.09715710723 | P162: 38.96
F163: 153634 | H163: SPR | I163: ST | J163: BOARD;DRYERASE;RULD;WE;10PK | L163: 39 | M163: 10 | N163: =VLOOKUP(M163,DFL!A:H,8,0) -> 0.36 | O163: =P163-(P163/1.0025) -> 0.06224438903 | P163: 24.96
F164: 9942188 | G164: SPR | H164: SPR | I164: EA | J164: RISER,DLX,LT-TOUCH,3-SCREEN | L164: 751 | M164: 48 | N164: =VLOOKUP(M164,DFL!A:H,8,0) -> 0.3 | O164: =P164-(P164/1.0025) -> 1.310972569 | P164: 525.7
F165: 332272 | H165: SPR | I165: EA | J165: CARDS;FLASH;PICTURE WORDS | L165: 7.99 | M165: 48 | N165: =VLOOKUP(M165,DFL!A:H,8,0) -> 0.3 | O165: =P165-(P165/1.0025) -> 0.01394014963 | P165: 5.59
F166: 9273711 | H166: SPR | I166: EA | J166: 256GB VX460 EXT SSD USB 3.1 | L166: 47.99 | M166: 46 | N166: =VLOOKUP(M166,DFL!A:H,8,0) -> 0.18 | O166: =P166-(P166/1.0025) -> 0.09812967581 | P166: 39.35
F167: 411716 | G167: BSD | H167: BSD | I167: CT | J167: PLATE,SOLO,BARE,PFTPK,6",500CT | L167: 166.26 | M167: 18 | N167: =VLOOKUP(M167,DFL!A:E,5,0) -> 0.55 | O167: =P167-(P167/1.0025) -> 0.1865835411 | P167: 74.82
F168: 9431656 | H168: SPR | I168: EA | J168: CHAIR RADLEY TASK NEW BLUE | L168: 221.09 | M168: 48 | N168: =VLOOKUP(M168,DFL!A:H,8,0) -> 0.3 | O168: =P168-(P168/1.0025) -> 0.3859351621 | P168: 154.76
F169: 504893 | G169: SPR | H169: SPR | I169: EA | J169: SHELVING,WIRE,INDUS,36X18 | L169: 241 | M169: 38 | N169: =VLOOKUP(M169,DFL!A:H,8,0) -> 0.36 | O169: =P169-(P169/1.0025) -> 0.384638404 | P169: 154.24
F170: 382858 | H170: SPR | I170: EA | J170: TONER,6700,STD CAP,CN | L170: 322.17 | M170: 43 | N170: =VLOOKUP(M170,DFL!A:H,8,0) -> 0.3 | O170: =P170-(P170/1.0025) -> 0.562394015 | P170: 225.52
F171: 8185229 | G171: SPR | H171: SPR | I171: EA | J171: BOARD,AYDA,STEEL,18X24 | L171: 49.85 | M171: 10 | N171: =VLOOKUP(M171,DFL!A:H,8,0) -> 0.36 | O171: =P171-(P171/1.0025) -> 0.07955112219 | P171: 31.9
F172: 912752 | H172: SPR | I172: PK | J172: CARD;IDX;HALF3X2.5200CTAST | L172: 3.2 | M172: 35 | N172: =VLOOKUP(M172,DFL!A:H,8,0) -> 0.6 | O172: =P172-(P172/1.0025) -> 0.00319201995 | P172: 1.28
F173: 5823312 | G173: SPR | H173: SPR | I173: EA | J173: COFFEE;SS;CAN;27OZ | L173: 37.77 | M173: 48 | N173: =VLOOKUP(M173,DFL!A:H,8,0) -> 0.3 | O173: =P173-(P173/1.0025) -> 0.06593516209 | P173: 26.44
F174: 677674 | G174: SPR | H174: SPR | I174: EA | J174: REFILL UND 3.5X6 PLASTICBASE | L174: 37.81 | M174: 11 | N174: =VLOOKUP(M174,DFL!A:H,8,0) -> 0.46 | O174: =P174-(P174/1.0025) -> 0.05092269327 | P174: 20.42
F175: 644982 | G175: SPR | H175: SPR | I175: EA | J175: ERASABLE UND 24X36 WALLMATE | L175: 47.19 | M175: 11 | N175: =VLOOKUP(M175,DFL!A:H,8,0) -> 0.46 | O175: =P175-(P175/1.0025) -> 0.06354114713 | P175: 25.48
F176: 8835375 | H176: SPR | I176: EA | J176: Serta¬Æ Smart Layers‚Ñ¢ Hensley Big And Tall Ergonomic Bonded Leather High-Back Chair, Dark Gray/Silver | L176: 649.99 | M176: 48 | N176: =VLOOKUP(M176,DFL!A:H,8,0) -> 0.3 | O176: =P176-(P176/1.0025) -> 1.134638404 | P176: 454.99
F177: 1285858 | H177: SPR | I177: EA | J177: MASTERVISION ALL-PURPOSE PLANN | L177: 822.23 | M177: 48 | N177: =VLOOKUP(M177,DFL!A:H,8,0) -> 0.3 | O177: =P177-(P177/1.0025) -> 1.435311721 | P177: 575.56
F178: 540046 | G178: SPR | H178: SPR | I178: ST | J178: BRUSH;PAINT;STUBBY;FLT;10CT | L178: 10.39 | M178: 47 | N178: =VLOOKUP(M178,DFL!A:H,8,0) -> 0.5 | O178: =P178-(P178/1.0025) -> 0.01296758105 | P178: 5.2
F179: 197023 | G179: BSD | H179: BSD | I179: CT | J179: TAPE,PKG,1.88X54.7YD,4/CT | L179: 173.71 | M179: 39 | N179: =VLOOKUP(M179,DFL!A:E,5,0) -> 0.6 | O179: =P179-(P179/1.0025) -> 0.1732668329 | P179: 69.48
F180: 311266 | H180: SPR | I180: EA | J180: STAMP,DATE,6-YR,SIZE 2 | L180: 8.95 | M180: 24 | N180: =VLOOKUP(M180,DFL!A:H,8,0) -> 0.55 | O180: =P180-(P180/1.0025) -> 0.01004987531 | P180: 4.03
F181: 2820705 | H181: SPR | I181: PK | J181: SCISSORS,RECYCLED,8",2PK,BLK | L181: 17.99 | M181: 7 | N181: =VLOOKUP(M181,DFL!A:H,8,0) -> 0.46 | O181: =P181-(P181/1.0025) -> 0.02421446384 | P181: 9.71
F182: 304556 | H182: SPR | I182: EA | J182: SERTA,SL,AIR,ARLINGTON,EXEC,CH | L182: 500.99 | M182: 48 | N182: =VLOOKUP(M182,DFL!A:H,8,0) -> 0.3 | O182: =P182-(P182/1.0025) -> 0.8745386534 | P182: 350.69
F183: 7259225 | G183: BSD | H183: BSD | I183: PK | J183: CUP,COLD,PLA,GRNSTRP,12OZ | L183: 21.27280775 | M183: 18 | N183: =VLOOKUP(M183,DFL!A:E,5,0) -> 0.55 | O183: =P183-(P183/1.0025) -> 0.02386533666 | P183: 9.57
F184: 1249003 | G184: BSD | H184: BSD | I184: CT | J184: CUP,COLD,PLA,GRNSTRP,12OZ | L184: 425.7211266 | M184: 18 | N184: =VLOOKUP(M184,DFL!A:E,5,0) -> 0.55 | O184: =P184-(P184/1.0025) -> 0.4777306733 | P184: 191.57
F185: 662238 | G185: SPR | H185: SPR | I185: CT | J185: CUP,COMPOSTABLE,STBE,1000CA | K185: EPP (eVine),BPI Certified compostable, USDA certified biobased,BPI,USDA BIO | L185: 196.48 | M185: 18 | N185: =VLOOKUP(M185,DFL!A:H,8,0) -> 0.44 | O185: =P185-(P185/1.0025) -> 0.2743890274 | P185: 110.03
F186: 1253422 | G186: SPR | H186: SPR | I186: CT | J186: LID,HOT CUP,10-20 OZ,CLR,800CA | K186: EPP (eVine),Made from 100% renewable resources, BPI Certified Compostable, USDA Certified Biobased ,BPI,USDA BIO | L186: 214.88 | M186: 18 | N186: =VLOOKUP(M186,DFL!A:H,8,0) -> 0.44 | O186: =P186-(P186/1.0025) -> 0.300074813 | P186: 120.33
F187: 742020 | G187: SPR | H187: SPR | I187: CA | J187: CUP,COMPOSTABLE HOT,MGN,1000CA | L187: 230.45 | M187: 18 | N187: =VLOOKUP(M187,DFL!A:H,8,0) -> 0.44 | O187: =P187-(P187/1.0025) -> 0.3218204489 | P187: 129.05
F188: 1250533 | G188: SPR | H188: SPR | I188: CT | J188: ECOGRIP HOT CUP SLEEVE 1300CA | L188: 179.88 | M188: 18 | N188: =VLOOKUP(M188,DFL!A:H,8,0) -> 0.44 | O188: =P188-(P188/1.0025) -> 0.2511970075 | P188: 100.73
F189: 161108 | G189: BSD | H189: BSD | I189: CA | J189: KNIFE;COMPOST;6";WH | L189: 178.41 | M189: 18 | N189: =VLOOKUP(M189,DFL!A:E,5,0) -> 0.55 | O189: =P189-(P189/1.0025) -> 0.2001995012 | P189: 80.28
F190: 968022 | G190: SPR | H190: SPR | I190: EA | J190: SHELVING,WIRE,48X24X72 | L190: 305 | M190: 38 | N190: =VLOOKUP(M190,DFL!A:H,8,0) -> 0.36 | O190: =P190-(P190/1.0025) -> 0.4867830424 | P190: 195.2
F191: 9738588 | H191: SPR | I191: EA | J191: ROUTER,WIFI6,MESH,AX1800 | L191: 139.99 | M191: 48 | N191: =VLOOKUP(M191,DFL!A:H,8,0) -> 0.3 | O191: =P191-(P191/1.0025) -> 0.2443640898 | P191: 97.99
A192: 4.31 | F192: 760034 | G192: BSD | H192: BSD | I192: EA | J192: WIPES,LYS,DISIN,MRNGBRZ,80CT | L192: 9.15 | M192: 19 | N192: =VLOOKUP(M192,DFL!A:E,5,0) -> 0.5 | O192: =P192-(P192/1.0025) -> 0.01142144638 | P192: 4.58
A193: 4.31 | F193: 760043 | G193: BSD | H193: BSD | I193: EA | J193: WIPES,LYSL,CRSPLIN,80CT | L193: 9.15 | M193: 19 | N193: =VLOOKUP(M193,DFL!A:E,5,0) -> 0.5 | O193: =P193-(P193/1.0025) -> 0.01142144638 | P193: 4.58
A194: 4.62 | F194: 9788119 | G194: SPR | H194: SPR | I194: EA | J194: WIPES,BRAND NEW DAY,80CT | L194: 10.18 | M194: 19 | N194: =VLOOKUP(M194,DFL!A:H,8,0) -> 0.45 | O194: =P194-(P194/1.0025) -> 0.01396508728 | P194: =ROUND(L194*(1-N194),2) -> 5.6
A195: 28.55 | F195: 790211 | G195: SPR | H195: SPR | I195: CT | J195: WIPES,DISINF,EARLY MORNING | L195: 61.08 | M195: 19 | N195: =VLOOKUP(M195,DFL!A:H,8,0) -> 0.45 | O195: =P195-(P195/1.0025) -> 0.08376558603 | P195: 33.59
A196: 27.73 | F196: 692789 | G196: SPR | H196: SPR | I196: CT | J196: WIPES,DISINF,CRSPLIN | L196: 61.08 | M196: 19 | N196: =VLOOKUP(M196,DFL!A:H,8,0) -> 0.45 | O196: =P196-(P196/1.0025) -> 0.08376558603 | P196: 33.59
A197: 27.73 | F197: 9028443 | G197: SPR | H197: SPR | I197: CT | J197: WIPES,BRAND NEW DAY,80CT | L197: 61.08 | M197: 19 | N197: =VLOOKUP(M197,DFL!A:H,8,0) -> 0.45 | O197: =P197-(P197/1.0025) -> 0.08376558603 | P197: 33.59
F198: 225421 | H198: SPR | I198: EA | J198: HL-L6300DW LASER PRINTER | L198: 779.99 | M198: 48 | N198: =VLOOKUP(M198,DFL!A:H,8,0) -> 0.3 | O198: =P198-(P198/1.0025) -> 1.361571072 | P198: 545.99
F199: 8511758 | H199: SPR | I199: EA | J199: BILL COUNTER,VALUE COUNTING | L199: 299.99 | M199: 48 | N199: =VLOOKUP(M199,DFL!A:H,8,0) -> 0.3 | O199: =P199-(P199/1.0025) -> 0.5236658354 | P199: 209.99
F200: 462310 | G200: BSD | H200: BSD | I200: EA | J200: COFFEE STRBCKS FRNCH RST 24BX | L200: 44.41 | M200: 48 | N200: =VLOOKUP(M200,DFL!A:E,5,0) -> 0.42 | O200: =P200-(P200/1.0025) -> 0.0642394015 | P200: 25.76
F201: 504758 | G201: SPR | H201: SPR | I201: EA | J201: SHELVING,WIRE,INDUS,48X18 | L201: 277 | M201: 38 | N201: =VLOOKUP(M201,DFL!A:H,8,0) -> 0.36 | O201: =P201-(P201/1.0025) -> 0.4420947631 | P201: 177.28
... 4299 more rows

Sheet DFL
A1: CATEGORY NUMBER | B1: Description | D1: OMX KEY | E1: OMX DFL % | G1: SP RICHARDS KEY | H1: SP Richards DFL %
A2: 1 | B2: Adhesives, Glues, Gluesticks, Adhesive Removers | D2: 1M | E2: 0.63 | G2: 1s | H2: 0.48
A3: 2 | B3: Dictionaries, Thesaurus, Diaries, Tickets, Reference Sets, Etc. | D3: 2M | E3: 0.48 | G3: 2s | H3: 0.33
A4: 3 | B4: Archive Boxes, Cardboard Boxes, Storage Containers | D4: 3M | E4: 0.61 | G4: 3s | H4: 0.5
A5: 4 | B5: Award Frames, Displays, Plaques, Certificates | D5: 4M | E5: 0.53 | G5: 4s | H5: 0.39
A6: 5 | B6: Badges, Badge Holders, Lanyards | D6: 5M | E6: 0.6 | G6: 5s | H6: 0.45
A7: 6 | B7: Batteries, Chargers, UPS Power Supplies, Surge Protectors, Extension Cords | D7: 6M | E7: 0.57 | G7: 6s | H7: 0.47
A8: 7 | B8: Binder Clips, Paper Clips, Panel Clips, Pushpins, Thumbtacks, Safety Pins, Rubber Bands, Scissors, Shears, Cutters, Trimmers, Hole Punches | D8: 7M | E8: 0.72 | G8: 7s | H8: 0.46
A9: 8 | B9: Binders, Combs, Rings, Spines | D9: 8M | E9: 0.65 | G9: 8s | H9: 0.55
A10: 9 | B10: Book Cases, Book Ends, Book Shelves | D10: 9M | E10: 0.51 | G10: 9s | H10: 0.37
A11: 10 | B11: White Boards, Bulletin Boards, Cork Boards, Easels, Poster Boards, Display Rails | D11: 10M | E11: 0.55 | G11: 10s | H11: 0.36
A12: 11 | B12: Appointment Books, Phone Message Books, Statement Books, Fax Message Books, While You Were Out Books, Forms, Calendars, Deskpads, Refills, Planners | D12: 11M | E12: 0.58 | G12: 11s | H12: 0.46
A13: 12 | B13: Garbage Can Liners, Shredder Bags | D13: 12M | E13: 0.47 | G13: 12s | H13: 0.4
A14: 13 | B14: Carts, Handtrucks | D14: 13M | E14: 0.47 | G14: 13s | H14: 0.32
A15: 14 | B15: CDs, DVDs, Cassette Tapes, Tape Cartridges, CD and DVD Cases, CD and DVD Storage, VHS Tapes, Computer Disks and Diskettes, CD Mailers, Ribbons, Computer Bags and Cases, Camera Film, Photo Paper, Camera Bags, Camera Cases | D15: 14M | E15: 0.46 | G15: 14s | H15: 0.31
A16: 15 | B16: Chair Mats, Door Mats, Floor Mats, Anti-fatigue Mats | D16: 15M | E16: 0.7 | G16: 15s | H16: 0.5
A17: 16 | B17: Clocks, Hooks, Lamps (Including Desk Lamps and Light Bulbs) | D17: 16M | E17: 0.5 | G17: 16s | H17: 0.36
A18: 17 | B18: Correction Fluid, Correction Tape, Correction Pens | D18: 17M | E18: 0.61 | G18: 17s | H18: 0.48
A19: 18 | B19: Food Service Ware: Cups, Spoons, Forks, Plates, Bowls, Etc. | D19: 18M | E19: 0.55 | G19: 18s | H19: 0.44
A20: 19 | B20: Breakroom Cleaners: Dusters, Computer Air Dusters, Wipes, All Purpose Cleaners, Bathroom Cleaners, Disinfectants, Sanitizers, Hand Soaps, Glass Cleaners, Air Fresheners, Dust Pans, Stainless Steel Cleaners, Microfiber Cloths, Kitchen Cleaners, Furniture C | D20: 19M | E20: 0.5 | G20: 19s | H20: 0.45
A21: 20 | B21: Chalk Erasers, Dry Erase Erasers, Chalk | D21: 20M | E21: 0.58 | G21: 20s | H21: 0.47
A22: 21 | B22: Calculators, Digital Voice Recorders, Typewriters, Cameras, Fans, Heaters, Laminators, Shredders, Pencil Sharpeners, Air Cleaners | D22: 21M | E22: 0.42 | G22: 21s | H22: 0.29
A23: 22 | B23: First Aid, Hand Lotions, Hand Sanitizers, Pain Relief, Gloves, Safety Supplies | D23: 22M | E23: 0.52 | G23: 22s | H23: 0.41
A24: 23 | B24: Headsets, Headset Accessories, Headphones | D24: 23M | E24: 0.37 | G24: 23s | H24: 0.3
A25: 24 | B25: Ink Pads, Refills, Calculator Ink, Stamps, Calculator Spools, Adding Machine Tape, Cash Register Tape, Wide Format Paper Rolls | D25: 24M | E25: 0.63 | G25: 24s | H25: 0.55
A26: 25 | B26: Knives, Cutters, Blades, Scrapers | D26: 25M | E26: 0.61 | G26: 25s | H26: 0.49
A27: 26 | B27: Labels, Label Makers, Label Holders | D27: 26M | E27: 0.56 | G27: 26s | H27: 0.44
A28: 27 | B28: Mailing Tubes, Mailing Tubs, Packaging, Envelopes, Fingertips, Letter Openers, Moisteners, Butcher Paper | D28: 27M | E28: 0.67 | G28: 27s | H28: 0.58
A29: 28 | B29: Markers, Highlighters, Felt Pens | D29: 28M | E29: 0.63 | G29: 28s | H29: 0.48
A30: 29 | B30: Mice, Keyboards, Wristrests, Keyboard Pads, Mousepads, Keyboard Trays, Speakers | D30: 29M | E30: 0.43 | G30: 29s | H30: 0.3
A31: 30 | B31: Paper: Notebooks, Notepads, Pads of Paper, Sticky Notes, Easel Pads, Stationery Paper | D31: 30M | E31: 0.73 | G31: 30s | H31: 0.58
A32: 31 | B32: Office Organizers, Inboxes, Copyholders, Pen and Pencil Holders, Wastebaskets, Drawers, Desktop Shelves | D32: 31M | E32: 0.64 | G32: 31s | H32: 0.49
A33: 32 | B33: Paper (Including Copy Paper except for paper in Category 49, Writing Paper, Colored Paper, etc.) | D33: 32M | E33: 0.75 | G33: 32s | H33: 0.65
A34: 33 | B34: Pencils, Pencil Erasers, Mechanical Pencils, Lead Refills, Pens, Pen Refills | D34: 33M | E34: 0.65 | G34: 33s | H34: 0.55
A35: 34 | B35: Protractors, Rulers, Yardsticks, Compasses, Engineer Triangles, Measuring Tapes | D35: 34M | E35: 0.7 | G35: 34s | H35: 0.55
A36: 35 | B36: Report Covers, Files, File Folders, Pocket Files, Portfolios, Jackets, Inserts, Folder Frames, Dividers, Wallet Files, File Guides, Index Cards, Business Cards, Card Holders, File Indexes, Tabs, Ledgers, Tab Reinforcement, Tags, Sheet Protectors, Letters, | D36: 35M | E36: 0.7 | G36: 35s | H36: 0.6
A37: 36 | B37: Signs, Sign Holder, Flyer Holders, Racks, Literature Displays, Name Plates | D37: 36M | E37: 0.6 | G37: 36s | H37: 0.36
A38: 37 | B38: Staplers, Staples, Staple Removers | D38: 37M | E38: 0.65 | G38: 37s | H38: 0.5
A39: 38 | B39: Storage Cabinets, Filing Cabinets, File Storage Systems, Rails | D39: 38M | E39: 0.51 | G39: 38s | H39: 0.36
A40: 39 | B40: Tape, Tape Dispensers, Embossing Tape, Velcro Products | D40: 39M | E40: 0.6 | G40: 39s | H40: 0.5
A41: 40 | B41: Breakroom Paper Products: Tissue, Paper Towels, Napkins | D41: 40M | E41: 0.52 | G41: 40s | H41: 0.44
A42: 41 | B42: Toner Cartridges, LaserJet HP Brand Only [HIGH YIELD ONLY] | D42: 41M | E42: 0.45 | G42: 41s | H42: 0.37
A43: 42 | B43: Toner and Ink Cartridges, Fusers, Kits and Drums; All Other HP Brand Models [HIGH YIELD ONLY] | D43: 42M | E43: 0.42 | G43: 42s | H43: 0.31
A44: 43 | B44: Toner and Ink Cartridges, Fusers, Kits and Drums; All Other OEM Brands, Excluding Biobased Products [HIGH YIELD ONLY] | D44: 43M | E44: 0.35 | G44: 43s | H44: 0.3
A45: 44 | B45: Toner and Ink Cartridges [REMAUNUFACTURED and/or USDA CERTIFIED BIOBASED ONLY] | D45: 44M | E45: 0.52 | G45: 44s | H45: 0.5
A46: 45 | B46: Transparency Film, Transparency Paper, Laminating Supplies, Laminating Pouches | D46: 45M | E46: 0.63 | G46: 45s | H46: 0.35
A47: 46 | B47: USB Drives, Flash Memory, Zip Disks | D47: 46M | E47: 0.35 | G47: 46s | H47: 0.18
A48: 47 | B48: "School Supplies": Art Paper, Art Supplies, Construction Paper, Crepe Paper, Paint, Crayons, Games/Learning Tools | D48: 47M | E48: 0.57 | G48: 47s | H48: 0.5
A49: 48 | B49: Un-Categorized Spend | D49: 48M | E49: 0.42 | G49: 48s | H49: 0.3

Sheet June 2025 RISI
A1: NASPO/State of Oregon Paper Price Update: 6/1/2025 ODP Business Solutions
A2: OD Part # | B2: Boise Product Number | C2: UOM | D2: Current Brand | E2: Description | F2: Color | G2: Size (inches) | H2: Recyl Content (%) | I2: NASPO Current Price | J2: State of OR Current Price | K2: NASPO 6/1/2025 RISI UPDATED | L2: OR 6/1/2025 RISI UPDATED | M2: Percent Change
A3: 196517 | B3: P1OX9001CTN | C3: CT | D3: Boise | E3: PAPER,XERO,WE,8.5X11,20# | F3: White | G3: 8.5 x 11 | H3: 0 | I3: 40 | J3: 40.8 | K3: =ROUND(I3*(1+$L$22),2) -> 40.27 | L3: =ROUND(J3*(1+$L$22),2) -> 41.08 | M3: =(K3-I3)/I3 -> 0.00675
A4: 196643 | B4: P1OX9004CTN | C4: CT | D4: Boise | E4: PAPER,XERO,WE,8.5X14,20# | F4: White | G4: 8.5 x 14 | H4: 0 | I4: 57.55 | J4: 58.7 | K4: =ROUND(I4*(1+$L$22),2) -> 57.94 | L4: =ROUND(J4*(1+$L$22),2) -> 59.1 | M4: =(K4-I4)/I4 -> 0.006776715899
A5: 196652 | B5: P1OX9007CTN | C5: CT | D5: Boise | E5: PAPER,XERO,WE,11X17,20# | F5: White | G5: 11 x 17 | H5: 0 | I5: 45.27 | J5: 46.18 | K5: 45.58 | L5: 46.49 | M5: 0.006847802076
A6: 116946 | B6: P1054901CTN | C6: CT | D6: Boise | E6: PAPER,XERO,RCY,WE,8.5X11 - 30% | F6: White | G6: 8.5 x 11 | H6: 30 | I6: 39.99 | J6: 40.79 | K6: 40.26 | L6: 41.07 | M6: 0.006751687922
A7: 942426 | B7: P1054907CTN | C7: CT | D7: Boise | E7: PAPER,XERO,RCY,WE,11X17 | F7: White | G7: 11 x 17 | H7: 30 | I7: 50.54 | J7: 51.55 | K7: 50.88 | L7: 51.9 | M7: 0.006727344677
A8: 125420 | B8: P1054922CTN | C8: CT | D8: Boise | E8: PAPER,ASPEN,8.5X11,20# - 100% | F8: White | G8: 8.5 x 11 | H8: 100 | I8: 58.79 | J8: 59.97 | K8: 59.19 | L8: 60.38 | M8: 0.006803878211
A9: 332063 | B9: P1OX9001 | C9: RM | D9: Boise | E9: PAPER,XERO,WE,8.5X11,20# | F9: White | G9: 8.5 x 11 | H9: 0 | I9: 4.02 | J9: 4.1 | K9: 4.05 | L9: 4.13 | M9: 0.007462686567
A10: 593395 | B10: P1OX9004 | C10: RM | D10: Boise | E10: PAPER,XERO,WE,8.5X14,20# | F10: White | G10: 8.5 x 14 | H10: 0 | I10: 5.75 | J10: 5.87 | K10: 5.79 | L10: 5.91 | M10: 0.006956521739
A11: 593467 | B11: P1OX9007 | C11: RM | D11: Boise | E11: PAPER,XERO,WE,11X17,20# | F11: White | G11: 11 x 17 | H11: 0 | I11: 9.29 | J11: 9.48 | K11: 9.35 | L11: 9.54 | M11: 0.006458557589
A12: 697884 | B12: P1054901 | C12: RM | D12: Boise | E12: PAPER,XERO,RCY,WE,8.5X11 - 30% | F12: White | G12: 8.5 x 11 | H12: 30 | I12: 4.57 | J12: 4.66 | K12: 4.6 | L12: 4.69 | M12: 0.006564551422
A13: 1381204 | B13: P1054922 | C13: RM | D13: Boise | E13: PAPER,ASPEN,8.5X11,20# - 100% | F13: White | G13: 8.5 x 11 | H13: 100 | I13: 5.89 | J13: 6.01 | K13: 5.93 | L13: 6.05 | M13: 0.006791171477
A15: Boise Product Number | B15: Boise Product Number | D15: Current Brand | E15: Description | F15: Color | G15: Size (inches) | H15: Recyl Content (%) | I15: NASPO Current Price | J15: State of OR Current Price | K15: NASPO 6/1/2025 RISI UPDATED | L15: OR 6/1/2025 RISI UPDATED | M15: Percent Change
A16: 895391 | B16: P1OX9001SKD | C16: PL | D16: Boise | E16: PAPER,XERO,WE,8.5X11,20# | F16: White | G16: 8.5 x 11 | H16: 0 | I16: 1547.19 | J16: 1578.13 | K16: =ROUND(I16*(1+$L$22),2) -> 1557.68 | L16: =ROUND(J16*(1+$L$22),2) -> 1588.83 | M16: =(K16-I16)/I16 -> 0.00678003348
A17: 673644 | B17: P1054901SKD | C17: PL | D17: Boise | E17: PAPER,XERO,RCY,WE,8.5X11 | F17: White | G17: 8.5 x 11 | H17: 30 | I17: 1759.69 | J17: 1794.88 | K17: =ROUND(I17*(1+$L$22),2) -> 1771.62 | L17: =ROUND(J17*(1+$L$22),2) -> 1807.05 | M17: =(K17-I17)/I17 -> 0.006779603226
A18: 9658816 | B18: P1054907SKD | C18: PL | D18: Boise | E18: PAPER,XERO,RCY,WE,11X17 | F18: White | G18: 11 x 17 | H18: 30 | I18: 1959.78 | J18: 1998.98 | K18: 1973.07 | L18: 2012.53 | M18: 0.006781373419
A19: 705279 | B19: P1054922SKD | C19: PL | D19: Boise | E19: PAPER,ASPEN,8.5X11,20# | F19: White | G19: 8.5 x 11 | H19: 100 | I19: 2280.57 | J19: 2326.18 | K19: 2296.03 | L19: 2341.95 | M19: 0.006779007003
J21: 2025-03-01 | K21: 2025-05-01
E22: RISI Index | J22: 1475 | K22: 1485 | L22: =(K22-J22)/J22 -> 0.006779661017
E24: NOTE: Oregon Price is NASPO Price +2% VCAF ADMIN FEE ADJUSTMENT
